[Event "Early-Titled-Tuesday-Blitz-March-26-2024"]
[Site "Chess.com"]
[Date "2024.03.26"]
[Round "2"]
[White "GameOverBro"]
[Black "Szparu"]
[Result "0-1"]
[WhiteElo "2558"]
[BlackElo "2811"]
[TimeControl "180+1"]
[EndTime "8:14:36 PDT"]
[Termination "Szparu won by resignation"]

1. e4 {[%clk 0:03:00.9]} 1... c5 {[%clk 0:02:57.8]} 2. Ne2 {[%clk 0:03:00.9]}
2... a6 {[%clk 0:02:55.1]} 3. c4 {[%clk 0:03:00.2]} 3... Nc6 {[%clk 0:02:54.1]}
4. Nbc3 {[%clk 0:03:00.4]} 4... Nf6 {[%clk 0:02:52.5]} 5. d4 {[%clk 0:02:53.9]}
5... cxd4 {[%clk 0:02:52.4]} 6. Nxd4 {[%clk 0:02:54.8]} 6... e5 {[%clk
0:02:52.7]} 7. Nc2 {[%clk 0:02:51.9]} 7... Bc5 {[%clk 0:02:52.5]} 8. Be3 {[%clk
0:02:51.3]} 8... d6 {[%clk 0:02:51.9]} 9. Rb1 {[%clk 0:02:51]} 9... Be6 {[%clk
0:02:49.8]} 10. b4 {[%clk 0:02:50]} 10... Bxe3 {[%clk 0:02:46.8]} 11. Nxe3
{[%clk 0:02:50.9]} 11... Rc8 {[%clk 0:02:46.8]} 12. Bd3 {[%clk 0:02:40.9]} 12...
O-O {[%clk 0:02:43.8]} 13. O-O {[%clk 0:02:40.6]} 13... Nd4 {[%clk 0:02:41.9]}
14. a4 {[%clk 0:02:37.7]} 14... a5 {[%clk 0:02:41.4]} 15. b5 {[%clk 0:02:36]}
15... Nd7 {[%clk 0:02:41.1]} 16. Ne2 {[%clk 0:02:32.2]} 16... Nc5 {[%clk
0:02:38.8]} 17. Nxd4 {[%clk 0:02:28.1]} 17... exd4 {[%clk 0:02:39.3]} 18. Nc2
{[%clk 0:02:28.4]} 18... Nxd3 {[%clk 0:02:39]} 19. Qxd3 {[%clk 0:02:26.3]} 19...
Bxc4 {[%clk 0:02:39.2]} 20. Qd2 {[%clk 0:02:23.2]} 20... Bxf1 {[%clk 0:02:39.4]}
21. Rxf1 {[%clk 0:02:24]} 21... Re8 {[%clk 0:02:35.2]} 22. Re1 {[%clk
0:02:19.8]} 22... Qc7 {[%clk 0:02:34.8]} 23. Nxd4 {[%clk 0:02:19.6]} 23... Qc3
{[%clk 0:02:34.6]} 24. Qd1 {[%clk 0:02:13.1]} 24... Rc4 {[%clk 0:02:31.9]} 25.
Nf5 {[%clk 0:02:10.5]} 25... Rcxe4 {[%clk 0:02:13.5]} 26. Ne3 {[%clk 0:02:05.6]}
26... d5 {[%clk 0:02:11.6]} 27. Qb1 {[%clk 0:02:04.6]} 27... d4 {[%clk
0:02:10.9]} 28. Rc1 {[%clk 0:02:05.1]} 28... Qb4 {[%clk 0:01:44.5]} 29. Nf1
{[%clk 0:02:00.3]} 29... Qxb1 {[%clk 0:01:42.8]} 30. Rxb1 {[%clk 0:02:01.2]}
30... Re1 {[%clk 0:01:40.1]} 31. Rb2 {[%clk 0:01:31.6]} 31... Rc8 {[%clk
0:01:39.3]} 0-1

[Event "Early-Titled-Tuesday-Blitz-March-26-2024"]
[Site "Chess.com"]
[Date "2024.03.26"]
[Round "2"]
[White "Binary010"]
[Black "Slovineanu"]
[Result "1-0"]
[WhiteElo "2793"]
[BlackElo "2515"]
[TimeControl "180+1"]
[EndTime "8:14:41 PDT"]
[Termination "Binary010 won by resignation"]

1. e4 {[%clk 0:03:00.9]} 1... e5 {[%clk 0:02:58.3]} 2. Nf3 {[%clk 0:03:00.9]}
2... Nc6 {[%clk 0:02:58.4]} 3. Bc4 {[%clk 0:03:00.9]} 3... Nf6 {[%clk
0:02:58.1]} 4. Ng5 {[%clk 0:03:01]} 4... d5 {[%clk 0:02:56.9]} 5. exd5 {[%clk
0:02:59.5]} 5... Nd4 {[%clk 0:02:57.1]} 6. c3 {[%clk 0:02:58.7]} 6... b5 {[%clk
0:02:56.5]} 7. Bf1 {[%clk 0:02:45.8]} 7... h6 {[%clk 0:02:05.7]} 8. cxd4 {[%clk
0:02:26.2]} 8... hxg5 {[%clk 0:02:05.5]} 9. dxe5 {[%clk 0:02:23.9]} 9... Nxd5
{[%clk 0:02:04.6]} 10. Bxb5+ {[%clk 0:02:23.1]} 10... Bd7 {[%clk 0:02:04.4]} 11.
Bxd7+ {[%clk 0:02:18.9]} 11... Qxd7 {[%clk 0:02:03.7]} 12. Nc3 {[%clk
0:02:15.8]} 12... Nf4 {[%clk 0:01:55.9]} 13. d4 {[%clk 0:01:55.2]} 13... Nxg2+
{[%clk 0:01:51.7]} 14. Kf1 {[%clk 0:01:44.8]} 14... Qh3 {[%clk 0:01:51.1]} 15.
Qa4+ {[%clk 0:01:36.6]} 15... Kd8 {[%clk 0:01:50.1]} 16. Qc6 {[%clk 0:01:23.4]}
16... Rb8 {[%clk 0:01:27.8]} 17. Qxg2 {[%clk 0:01:21.2]} 17... Qd3+ {[%clk
0:01:18.6]} 18. Kg1 {[%clk 0:01:13.7]} 1-0

[Event "Early-Titled-Tuesday-Blitz-March-26-2024"]
[Site "Chess.com"]
[Date "2024.03.26"]
[Round "2"]
[White "Levanzovsky"]
[Black "Susal_De_Silva"]
[Result "0-1"]
[WhiteElo "2393"]
[BlackElo "2764"]
[TimeControl "180+1"]
[EndTime "8:14:43 PDT"]
[Termination "Susal_De_Silva won by resignation"]

1. c4 {[%clk 0:03:00.9]} 1... e6 {[%clk 0:02:57.3]} 2. Nf3 {[%clk 0:02:57.8]}
2... d5 {[%clk 0:02:57.4]} 3. e3 {[%clk 0:02:56.4]} 3... Nf6 {[%clk 0:02:56.6]}
4. Nc3 {[%clk 0:02:55.4]} 4... Be7 {[%clk 0:02:56.5]} 5. d4 {[%clk 0:02:52.7]}
5... O-O {[%clk 0:02:56.6]} 6. Qc2 {[%clk 0:02:49.4]} 6... a6 {[%clk 0:02:50.6]}
7. c5 {[%clk 0:02:43.3]} 7... b6 {[%clk 0:02:47.2]} 8. cxb6 {[%clk 0:02:33.1]}
8... cxb6 {[%clk 0:02:48.1]} 9. Bd3 {[%clk 0:02:27.5]} 9... Nc6 {[%clk
0:02:46.3]} 10. a3 {[%clk 0:02:27.5]} 10... Bb7 {[%clk 0:02:45.2]} 11. g4 {[%clk
0:02:20.9]} 11... Rc8 {[%clk 0:02:44.9]} 12. g5 {[%clk 0:02:13.4]} 12... Ne4
{[%clk 0:02:44.4]} 13. h4 {[%clk 0:02:03.6]} 13... f5 {[%clk 0:02:42.9]} 14. Qe2
{[%clk 0:01:28.3]} 14... Na5 {[%clk 0:02:40.5]} 15. Ne5 {[%clk 0:01:09.1]} 15...
Nb3 {[%clk 0:02:38.4]} 16. Rb1 {[%clk 0:01:09.3]} 16... Nxc3 {[%clk 0:02:28.4]}
17. bxc3 {[%clk 0:01:10.2]} 17... Nxc1 {[%clk 0:02:28]} 18. Rxc1 {[%clk
0:01:06.6]} 18... Bxa3 {[%clk 0:02:28.4]} 19. Rc2 {[%clk 0:01:02.3]} 19... Bd6
{[%clk 0:02:27.4]} 20. Bxa6 {[%clk 0:00:53.4]} 20... Bxa6 {[%clk 0:02:15.3]} 21.
Qxa6 {[%clk 0:00:54.3]} 21... Ra8 {[%clk 0:02:16]} 0-1

[Event "Early-Titled-Tuesday-Blitz-March-26-2024"]
[Site "Chess.com"]
[Date "2024.03.26"]
[Round "2"]
[White "artooon"]
[Black "kriscacco"]
[Result "1-0"]
[WhiteElo "3020"]
[BlackElo "2159"]
[TimeControl "180+1"]
[EndTime "8:14:49 PDT"]
[Termination "artooon won by resignation"]

1. e4 {[%clk 0:03:00.9]} 1... g6 {[%clk 0:02:59.9]} 2. d4 {[%clk 0:03:00.5]}
2... Bg7 {[%clk 0:03:00.2]} 3. Nc3 {[%clk 0:03:00.8]} 3... d6 {[%clk 0:02:59.9]}
4. Be3 {[%clk 0:03:00.9]} 4... Nf6 {[%clk 0:02:57.3]} 5. f3 {[%clk 0:03:01.4]}
5... c6 {[%clk 0:02:57.3]} 6. Qd2 {[%clk 0:03:01.4]} 6... Nbd7 {[%clk
0:02:55.6]} 7. Nge2 {[%clk 0:03:00]} 7... b5 {[%clk 0:02:54.6]} 8. Bh6 {[%clk
0:02:58.5]} 8... O-O {[%clk 0:02:54.3]} 9. h4 {[%clk 0:02:58]} 9... Re8 {[%clk
0:02:44.6]} 10. h5 {[%clk 0:02:56.9]} 10... Nf8 {[%clk 0:02:42.2]} 11. hxg6
{[%clk 0:02:53]} 11... fxg6 {[%clk 0:02:38.7]} 12. Bxg7 {[%clk 0:02:53.1]} 12...
Kxg7 {[%clk 0:02:38.5]} 13. Qh6+ {[%clk 0:02:53.7]} 13... Kh8 {[%clk 0:02:37.4]}
14. e5 {[%clk 0:02:42.4]} 14... dxe5 {[%clk 0:02:34.1]} 15. dxe5 {[%clk
0:02:43.3]} 15... Ng8 {[%clk 0:02:33.9]} 16. Qe3 {[%clk 0:02:38.7]} 16... Bf5
{[%clk 0:02:27.9]} 17. Nd4 {[%clk 0:02:29.5]} 17... Qc8 {[%clk 0:02:18.5]} 18.
g4 {[%clk 0:02:21.3]} 18... Be6 {[%clk 0:02:13.4]} 19. Ne4 {[%clk 0:02:11.2]}
19... Bd5 {[%clk 0:02:11.2]} 20. O-O-O {[%clk 0:02:00.9]} 20... a6 {[%clk
0:02:10.1]} 21. Ng5 {[%clk 0:01:56]} 21... Kg7 {[%clk 0:02:05.2]} 22. Bd3 {[%clk
0:01:49.9]} 22... h6 {[%clk 0:02:00.9]} 23. Bxg6 {[%clk 0:01:33]} 23... Kxg6
{[%clk 0:01:54.4]} 24. Qd3+ {[%clk 0:01:32]} 24... Kg7 {[%clk 0:01:51.7]} 25.
Nf5+ {[%clk 0:01:31.3]} 25... Kh8 {[%clk 0:01:44.8]} 26. Nxh6 {[%clk 0:01:29.1]}
26... Nxh6 {[%clk 0:01:44.2]} 27. Rxh6+ {[%clk 0:01:27.9]} 27... Kg7 {[%clk
0:01:45.1]} 28. Rh7+ {[%clk 0:01:21]} 28... Kg8 {[%clk 0:01:44.3]} 29. Rdh1
{[%clk 0:01:21]} 1-0

[Event "Early-Titled-Tuesday-Blitz-March-26-2024"]
[Site "Chess.com"]
[Date "2024.03.26"]
[Round "2"]
[White "BilicVladimir"]
[Black "The_Straightforward_Rook"]
[Result "1-0"]
[WhiteElo "2689"]
[BlackElo "2413"]
[TimeControl "180+1"]
[EndTime "8:14:51 PDT"]
[Termination "BilicVladimir won by resignation"]

1. e4 {[%clk 0:03:00.9]} 1... e5 {[%clk 0:02:58.5]} 2. Nf3 {[%clk 0:03:00.6]}
2... Nc6 {[%clk 0:02:59.1]} 3. Bb5 {[%clk 0:03:00.3]} 3... Nf6 {[%clk
0:02:58.9]} 4. d3 {[%clk 0:03:00.2]} 4... Bc5 {[%clk 0:02:58.3]} 5. O-O {[%clk
0:02:59.8]} 5... Nd4 {[%clk 0:02:58.5]} 6. Nxd4 {[%clk 0:02:59.1]} 6... Bxd4
{[%clk 0:02:59.4]} 7. c3 {[%clk 0:02:59]} 7... Bb6 {[%clk 0:02:59.8]} 8. a4
{[%clk 0:02:59]} 8... c6 {[%clk 0:02:58.5]} 9. Bc4 {[%clk 0:02:59]} 9... O-O
{[%clk 0:02:58]} 10. Qe2 {[%clk 0:02:57.6]} 10... Re8 {[%clk 0:02:38.5]} 11. h3
{[%clk 0:02:55.9]} 11... h6 {[%clk 0:02:36.8]} 12. Be3 {[%clk 0:02:53.7]} 12...
d5 {[%clk 0:02:34.9]} 13. exd5 {[%clk 0:02:50]} 13... cxd5 {[%clk 0:02:35.8]}
14. Bb5 {[%clk 0:02:50]} 14... Bd7 {[%clk 0:02:33.3]} 15. Bxd7 {[%clk
0:02:48.3]} 15... Nxd7 {[%clk 0:02:33.4]} 16. Bxb6 {[%clk 0:02:47.3]} 16... Qxb6
{[%clk 0:02:20.2]} 17. a5 {[%clk 0:02:45.2]} 17... Qg6 {[%clk 0:02:17.2]} 18.
Nd2 {[%clk 0:02:43.3]} 18... Re6 {[%clk 0:02:14]} 19. Nf3 {[%clk 0:02:40.5]}
19... Rae8 {[%clk 0:02:11.1]} 20. Rfe1 {[%clk 0:02:33.2]} 20... b5 {[%clk
0:02:02]} 21. axb6 {[%clk 0:02:30.7]} 21... axb6 {[%clk 0:02:02.9]} 22. b4
{[%clk 0:02:26.4]} 22... Qf5 {[%clk 0:01:48.6]} 23. Ra7 {[%clk 0:02:21.2]} 23...
Nf8 {[%clk 0:01:46.3]} 24. c4 {[%clk 0:02:05.5]} 24... dxc4 {[%clk 0:01:42.1]}
25. dxc4 {[%clk 0:02:05.5]} 25... Ng6 {[%clk 0:01:38.7]} 26. Qe4 {[%clk
0:02:02.8]} 26... Qxe4 {[%clk 0:01:18]} 27. Rxe4 {[%clk 0:02:02.3]} 27... f5
{[%clk 0:01:18.9]} 28. Re1 {[%clk 0:02:01.5]} 28... Rc6 {[%clk 0:01:19.5]} 29.
Rb7 {[%clk 0:01:56.2]} 29... e4 {[%clk 0:01:14.1]} 30. Nd4 {[%clk 0:01:55.3]}
30... Rxc4 {[%clk 0:01:13.4]} 31. Nxf5 {[%clk 0:01:53.9]} 31... Rxb4 {[%clk
0:01:10.7]} 32. Rxg7+ {[%clk 0:01:51.7]} 32... Kf8 {[%clk 0:01:09.5]} 33. Rxg6
{[%clk 0:01:51.3]} 1-0

[Event "Early-Titled-Tuesday-Blitz-March-26-2024"]
[Site "Chess.com"]
[Date "2024.03.26"]
[Round "2"]
[White "DIM90"]
[Black "ChelsieMonica"]
[Result "0-1"]
[WhiteElo "2323"]
[BlackElo "2533"]
[TimeControl "180+1"]
[EndTime "8:14:51 PDT"]
[Termination "ChelsieMonica won by resignation"]

1. e4 {[%clk 0:03:00.9]} 1... c5 {[%clk 0:02:58.4]} 2. d4 {[%clk 0:03:00.8]}
2... cxd4 {[%clk 0:02:58.6]} 3. c3 {[%clk 0:03:01.6]} 3... d5 {[%clk 0:02:58.1]}
4. exd5 {[%clk 0:03:00.3]} 4... Qxd5 {[%clk 0:02:57.6]} 5. cxd4 {[%clk
0:02:59.3]} 5... e6 {[%clk 0:02:56.4]} 6. Nf3 {[%clk 0:02:59.7]} 6... Nc6 {[%clk
0:02:55.9]} 7. Be2 {[%clk 0:02:59.6]} 7... Nf6 {[%clk 0:02:55.3]} 8. O-O {[%clk
0:03:00.1]} 8... Be7 {[%clk 0:02:53.6]} 9. Nc3 {[%clk 0:03:00.2]} 9... Qd8
{[%clk 0:02:53.8]} 10. Qb3 {[%clk 0:02:59.1]} 10... O-O {[%clk 0:02:53.8]} 11.
Rd1 {[%clk 0:02:59.3]} 11... Na5 {[%clk 0:02:52.4]} 12. Qc2 {[%clk 0:02:53.6]}
12... Nd5 {[%clk 0:02:52.5]} 13. Nxd5 {[%clk 0:02:46.8]} 13... exd5 {[%clk
0:02:52.6]} 14. Bf4 {[%clk 0:02:39.2]} 14... Nc6 {[%clk 0:02:48.5]} 15. Ne5
{[%clk 0:02:34.8]} 15... Bd7 {[%clk 0:02:44.7]} 16. Qb3 {[%clk 0:02:32.6]} 16...
Nxe5 {[%clk 0:02:42]} 17. Bxe5 {[%clk 0:02:32]} 17... Bc6 {[%clk 0:02:41.7]} 18.
Qg3 {[%clk 0:02:31.9]} 18... Bf6 {[%clk 0:02:40.3]} 19. Bf3 {[%clk 0:02:31.3]}
19... Re8 {[%clk 0:02:39]} 20. Re1 {[%clk 0:02:29.2]} 20... Bxe5 {[%clk
0:02:38.1]} 21. Rxe5 {[%clk 0:02:29]} 21... f6 {[%clk 0:02:34.8]} 22. Rxe8+
{[%clk 0:02:20.8]} 22... Qxe8 {[%clk 0:02:35]} 23. Qd6 {[%clk 0:02:12.4]} 23...
Rd8 {[%clk 0:02:34]} 24. Qb4 {[%clk 0:02:12.1]} 24... Qe6 {[%clk 0:02:25.6]} 25.
Re1 {[%clk 0:02:10.5]} 25... Qf5 {[%clk 0:02:16.6]} 26. Qa5 {[%clk 0:01:53]}
26... Ra8 {[%clk 0:02:13.9]} 27. Qd2 {[%clk 0:01:47.2]} 27... g5 {[%clk
0:02:11.9]} 28. Qe3 {[%clk 0:01:45.7]} 28... Re8 {[%clk 0:02:10.8]} 29. Qd2
{[%clk 0:01:37.5]} 29... g4 {[%clk 0:02:07.5]} 30. Rxe8+ {[%clk 0:01:34.7]}
30... Bxe8 {[%clk 0:02:07.4]} 31. Qe2 {[%clk 0:01:21.2]} 31... Bd7 {[%clk
0:01:55.7]} 32. Bxd5+ {[%clk 0:01:16.8]} 32... Qxd5 {[%clk 0:01:54.5]} 33. g3
{[%clk 0:01:15.4]} 33... Kf7 {[%clk 0:01:53.7]} 34. Qe3 {[%clk 0:01:15]} 34...
Bc6 {[%clk 0:01:52.8]} 0-1

[Event "Early-Titled-Tuesday-Blitz-March-26-2024"]
[Site "Chess.com"]
[Date "2024.03.26"]
[Round "2"]
[White "agvania123"]
[Black "ajedrezsinlimites"]
[Result "0-1"]
[WhiteElo "2414"]
[BlackElo "2627"]
[TimeControl "180+1"]
[EndTime "8:14:52 PDT"]
[Termination "ajedrezsinlimites won by resignation"]

1. e4 {[%clk 0:03:00.9]} 1... c6 {[%clk 0:02:55.7]} 2. Nf3 {[%clk 0:02:57.7]}
2... d5 {[%clk 0:02:56]} 3. Nc3 {[%clk 0:02:57.9]} 3... dxe4 {[%clk 0:02:56]} 4.
Nxe4 {[%clk 0:02:58.8]} 4... Nf6 {[%clk 0:02:56.4]} 5. Qe2 {[%clk 0:02:59.4]}
5... Nxe4 {[%clk 0:02:54.2]} 6. Qxe4 {[%clk 0:03:00.3]} 6... Nd7 {[%clk
0:02:54.4]} 7. Bc4 {[%clk 0:03:00.9]} 7... Nf6 {[%clk 0:02:54.5]} 8. Ne5 {[%clk
0:03:00.9]} 8... e6 {[%clk 0:02:54.2]} 9. Qe2 {[%clk 0:02:59.9]} 9... b5 {[%clk
0:02:54.7]} 10. Bb3 {[%clk 0:02:59.6]} 10... Qc7 {[%clk 0:02:53.6]} 11. d4
{[%clk 0:02:58.3]} 11... Bd6 {[%clk 0:02:53.5]} 12. c3 {[%clk 0:02:57.9]} 12...
O-O {[%clk 0:02:53.5]} 13. Bf4 {[%clk 0:02:56.3]} 13... Nd5 {[%clk 0:02:52.1]}
14. Bg3 {[%clk 0:02:56.2]} 14... a5 {[%clk 0:02:48.9]} 15. O-O {[%clk
0:02:53.8]} 15... a4 {[%clk 0:02:49]} 16. Bc2 {[%clk 0:02:53.6]} 16... a3 {[%clk
0:02:48.9]} 17. b3 {[%clk 0:02:39.8]} 17... f6 {[%clk 0:02:48.3]} 18. Nf3 {[%clk
0:02:03.7]} 18... b4 {[%clk 0:02:23]} 19. c4 {[%clk 0:01:57.8]} 19... Nc3 {[%clk
0:02:19.2]} 20. Qd3 {[%clk 0:01:58.3]} 20... f5 {[%clk 0:02:17.4]} 21. Ne5
{[%clk 0:01:53.1]} 21... c5 {[%clk 0:02:15.8]} 22. Rfe1 {[%clk 0:01:47.9]} 22...
cxd4 {[%clk 0:02:11.5]} 23. Qxd4 {[%clk 0:01:44.9]} 23... Rd8 {[%clk 0:02:11.7]}
24. Qh4 {[%clk 0:01:30.8]} 24... Bb7 {[%clk 0:02:07.1]} 25. f4 {[%clk
0:00:56.5]} 25... Bc5+ {[%clk 0:01:57.6]} 26. Bf2 {[%clk 0:00:55.8]} 26... Rd2
{[%clk 0:01:56.8]} 0-1

[Event "Early-Titled-Tuesday-Blitz-March-26-2024"]
[Site "Chess.com"]
[Date "2024.03.26"]
[Round "2"]
[White "nikitakhoroshev"]
[Black "MarijaKuznecova"]
[Result "0-1"]
[WhiteElo "2664"]
[BlackElo "2426"]
[TimeControl "180+1"]
[EndTime "8:14:54 PDT"]
[Termination "MarijaKuznecova won by resignation"]

1. e4 {[%clk 0:03:00.9]} 1... c5 {[%clk 0:02:58.8]} 2. Nc3 {[%clk 0:02:59.5]}
2... d6 {[%clk 0:02:57.9]} 3. f4 {[%clk 0:02:59.4]} 3... Nc6 {[%clk 0:02:56.9]}
4. Nf3 {[%clk 0:02:59.3]} 4... g6 {[%clk 0:02:57.1]} 5. a4 {[%clk 0:02:59.4]}
5... Bg7 {[%clk 0:02:56.5]} 6. Bb5 {[%clk 0:02:53.4]} 6... Bd7 {[%clk
0:02:49.7]} 7. O-O {[%clk 0:02:50.3]} 7... e6 {[%clk 0:02:48.1]} 8. d3 {[%clk
0:02:48.4]} 8... Nge7 {[%clk 0:02:48]} 9. Qe1 {[%clk 0:02:48.3]} 9... O-O {[%clk
0:02:47.3]} 10. Be3 {[%clk 0:02:48.2]} 10... a6 {[%clk 0:02:46.3]} 11. Bxc6
{[%clk 0:02:48]} 11... Bxc6 {[%clk 0:02:46.8]} 12. Qh4 {[%clk 0:02:38.1]} 12...
Rc8 {[%clk 0:01:55]} 13. e5 {[%clk 0:02:37.5]} 13... Nf5 {[%clk 0:01:46.8]} 14.
Qxd8 {[%clk 0:02:25.6]} 14... Rfxd8 {[%clk 0:01:47.7]} 15. exd6 {[%clk
0:02:07.9]} 15... Nxe3 {[%clk 0:01:43.3]} 16. Rf2 {[%clk 0:02:01.3]} 16... Rxd6
{[%clk 0:01:41.4]} 17. Re2 {[%clk 0:01:56.5]} 17... Nf5 {[%clk 0:01:29]} 18. Ne5
{[%clk 0:01:53]} 18... Bxe5 {[%clk 0:01:28.1]} 19. fxe5 {[%clk 0:01:53.9]} 19...
Rd4 {[%clk 0:01:25.4]} 20. a5 {[%clk 0:01:50.2]} 20... Rb4 {[%clk 0:01:21.3]}
21. b3 {[%clk 0:01:49.9]} 21... Rd4 {[%clk 0:01:17.6]} 22. h3 {[%clk 0:01:47.4]}
22... Nh4 {[%clk 0:01:15.5]} 23. Ne4 {[%clk 0:01:43.1]} 23... Bxe4 {[%clk
0:01:15.5]} 24. dxe4 {[%clk 0:01:44]} 24... Rcd8 {[%clk 0:01:15]} 25. Kf2 {[%clk
0:01:44.2]} 25... g5 {[%clk 0:01:14.6]} 26. g3 {[%clk 0:01:43.8]} 26... Ng6
{[%clk 0:01:14.5]} 27. c3 {[%clk 0:01:40]} 27... Rd2 {[%clk 0:01:13.6]} 28. Ke3
{[%clk 0:01:38.3]} 28... R8d3+ {[%clk 0:01:12.8]} 29. Kf2 {[%clk 0:01:38.5]}
29... Nxe5 {[%clk 0:01:13.4]} 0-1

[Event "Early-Titled-Tuesday-Blitz-March-26-2024"]
[Site "Chess.com"]
[Date "2024.03.26"]
[Round "2"]
[White "tusplingher"]
[Black "dretch"]
[Result "1/2-1/2"]
[WhiteElo "2508"]
[BlackElo "2870"]
[TimeControl "180+1"]
[EndTime "8:15:06 PDT"]
[Termination "Game drawn by repetition"]

1. e4 {[%clk 0:03:00.9]} 1... e6 {[%clk 0:02:57.5]} 2. d4 {[%clk 0:03:00.2]}
2... d5 {[%clk 0:02:58.1]} 3. Nc3 {[%clk 0:03:00.2]} 3... Nf6 {[%clk 0:02:58]}
4. Bg5 {[%clk 0:02:59.6]} 4... dxe4 {[%clk 0:02:57.9]} 5. Nxe4 {[%clk
0:02:59.4]} 5... Be7 {[%clk 0:02:58.5]} 6. Bxf6 {[%clk 0:02:59.7]} 6... Bxf6
{[%clk 0:02:59.4]} 7. Nf3 {[%clk 0:02:58.3]} 7... Nd7 {[%clk 0:03:00]} 8. Qd2
{[%clk 0:02:56.9]} 8... Be7 {[%clk 0:03:00.1]} 9. Bd3 {[%clk 0:02:54.7]} 9... c5
{[%clk 0:02:51.5]} 10. dxc5 {[%clk 0:02:53.6]} 10... Nxc5 {[%clk 0:02:50.9]} 11.
Nxc5 {[%clk 0:02:53.1]} 11... Bxc5 {[%clk 0:02:50.8]} 12. Qc3 {[%clk 0:02:47.7]}
12... Qb6 {[%clk 0:02:45.5]} 13. O-O {[%clk 0:02:40.6]} 13... O-O {[%clk
0:02:42.8]} 14. Qe5 {[%clk 0:02:14.3]} 14... Bd7 {[%clk 0:02:14.1]} 15. Bxh7+
{[%clk 0:01:52]} 15... Kxh7 {[%clk 0:02:14.7]} 16. Qh5+ {[%clk 0:01:52.2]} 16...
Kg8 {[%clk 0:02:15.1]} 17. Ng5 {[%clk 0:01:53]} 17... Rfd8 {[%clk 0:02:13.8]}
18. Qxf7+ {[%clk 0:01:52.8]} 18... Kh8 {[%clk 0:02:13]} 19. Qh5+ {[%clk
0:01:48.5]} 19... Kg8 {[%clk 0:02:13.2]} 20. Qf7+ {[%clk 0:00:56.6]} 20... Kh8
{[%clk 0:02:12.9]} 21. Qh5+ {[%clk 0:00:46.3]} 21... Kg8 {[%clk 0:02:13]} 22.
Rad1 {[%clk 0:00:32]} 22... Bd4 {[%clk 0:02:13.1]} 23. Qf7+ {[%clk 0:00:22.6]}
23... Kh8 {[%clk 0:02:12.4]} 24. Rd3 {[%clk 0:00:23.3]} 24... e5 {[%clk
0:02:12.5]} 25. Qh5+ {[%clk 0:00:18.6]} 25... Kg8 {[%clk 0:02:12.1]} 26. Qf7+
{[%clk 0:00:18.3]} 26... Kh8 {[%clk 0:02:12.6]} 27. Qh5+ {[%clk 0:00:18]} 27...
Kg8 {[%clk 0:02:13]} 28. Qf7+ {[%clk 0:00:18.1]} 28... Kh8 {[%clk 0:02:13.5]}
1/2-1/2

[Event "Early-Titled-Tuesday-Blitz-March-26-2024"]
[Site "Chess.com"]
[Date "2024.03.26"]
[Round "2"]
[White "lagunanivaria"]
[Black "GMT4114"]
[Result "1-0"]
[WhiteElo "2459"]
[BlackElo "1973"]
[TimeControl "180+1"]
[EndTime "8:15:30 PDT"]
[Termination "lagunanivaria won on time"]

1. e3 {[%clk 0:03:00.9]} 1... f5 {[%clk 0:02:58.4]} 2. d4 {[%clk 0:03:00]} 2...
Nf6 {[%clk 0:02:58.5]} 3. c4 {[%clk 0:03:00.7]} 3... e6 {[%clk 0:02:58.8]} 4.
Nc3 {[%clk 0:03:01.4]} 4... Be7 {[%clk 0:02:57]} 5. g3 {[%clk 0:03:01.9]} 5...
O-O {[%clk 0:02:56.8]} 6. Bg2 {[%clk 0:03:02.1]} 6... d6 {[%clk 0:02:57.2]} 7.
Nge2 {[%clk 0:03:01.6]} 7... e5 {[%clk 0:02:54.1]} 8. b4 {[%clk 0:02:59]} 8...
a5 {[%clk 0:02:52.9]} 9. b5 {[%clk 0:02:57.6]} 9... Qe8 {[%clk 0:02:32.6]} 10.
Bb2 {[%clk 0:02:54.5]} 10... Qg6 {[%clk 0:01:27.9]} 11. dxe5 {[%clk 0:02:47.9]}
11... dxe5 {[%clk 0:01:28]} 12. Nd5 {[%clk 0:02:48.8]} 12... Nxd5 {[%clk
0:01:08]} 13. Bxd5+ {[%clk 0:02:47.5]} 13... Kh8 {[%clk 0:01:02.1]} 14. Bxe5
{[%clk 0:02:47.1]} 14... Bb4+ {[%clk 0:00:53.2]} 15. Bc3 {[%clk 0:02:44]} 15...
Nd7 {[%clk 0:00:49.8]} 16. O-O {[%clk 0:02:41.4]} 16... Nf6 {[%clk 0:00:44.9]}
17. Nf4 {[%clk 0:02:36.4]} 17... Qh6 {[%clk 0:00:43.5]} 18. Bxb4 {[%clk
0:02:29.8]} 18... axb4 {[%clk 0:00:44.4]} 19. Bf3 {[%clk 0:02:21.3]} 19... g5
{[%clk 0:00:41.8]} 20. Nd5 {[%clk 0:02:19.7]} 20... Ne4 {[%clk 0:00:33]} 21.
Bxe4 {[%clk 0:02:17]} 21... fxe4 {[%clk 0:00:33.3]} 22. Qd4+ {[%clk 0:02:17.9]}
22... Kg8 {[%clk 0:00:22.4]} 23. Ne7+ {[%clk 0:02:17.8]} 23... Kf7 {[%clk
0:00:22.6]} 24. Nxc8 {[%clk 0:02:18.7]} 24... Raxc8 {[%clk 0:00:20.5]} 25. Qxe4
{[%clk 0:02:19.1]} 25... Rce8 {[%clk 0:00:12.3]} 26. Qxb7 {[%clk 0:02:17]} 26...
Re7 {[%clk 0:00:10]} 27. Rad1 {[%clk 0:02:12.7]} 27... g4 {[%clk 0:00:05.1]} 28.
Qd5+ {[%clk 0:02:10.7]} 28... Kg7 {[%clk 0:00:03]} 29. Qd4+ {[%clk 0:02:10.9]}
1-0